fUST/lending_fUST_20241226
["ID","MTS","AMOUNT","RATE_DAILY","PERIOD"]
[346648251,1735151442386,-500.0,0.00011216,2]
[346648253,1735151442395,-500.0,0.00011216,2]
[346648255,1735151442404,-500.0,0.00011216,2]
[346648257,1735151442414,-500.0,0.00011216,2]
[346648259,1735151442423,-8726.05,0.00011216,2]
[346648261,1735151442433,-500.0,0.00011216,2]
[346648263,1735151442442,-500.0,0.00011216,2]
[346648265,1735151442451,-500.0,0.00011216,2]
[346648267,1735151442460,-500.0,0.00011216,2]
[346648269,1735151442469,-500.0,0.00011216,2]
[346648271,1735151442479,-500.0,0.00011216,2]
[346648273,1735151442488,-500.0,0.00011217,2]
[346648275,1735151442497,-500.0,0.00011217,2]
[346648277,1735151442506,-505.01891595,0.00011217,2]
[346648279,1735151442516,-442.60988733,0.00011217,2]
[346648281,1735151442526,-500.0,0.00011217,2]
[346648283,1735151442535,-377.07,0.00011217,4]
[346648285,1735151442544,-160.94,0.00011217,2]
[346648287,1735151442553,-500.0,0.00011217,2]
[346648289,1735151442564,-500.0,0.00011217,2]
[346648291,1735151442574,-500.0,0.00011217,2]
[346648293,1735151442583,-500.0,0.00011217,2]
[346648295,1735151442593,-500.0,0.00011217,2]
[346648297,1735151442602,-500.0,0.00011217,2]
[346648299,1735151442611,-312.84,0.00011217,2]
[346648301,1735151442620,-500.0,0.00011217,2]
[346648303,1735151442629,-299.26815914,0.00011217,2]
[346648305,1735151442639,-500.0,0.00011217,2]
[346648307,1735151442648,-500.0,0.00011217,2]
[346648309,1735151442657,-282.16,0.00011217,2]
[346648311,1735151442667,-183.48,0.00011217,2]
[346648313,1735151442676,-500.0,0.00011217,2]
[346648315,1735151442686,-292.58,0.00011217,2]
[346648317,1735151442695,-290.46,0.00011217,2]
[346648319,1735151442704,-500.0,0.00011217,2]
[346648321,1735151442714,-292.67,0.00011217,2]
[346648323,1735151442723,-465.74,0.00011217,2]
[346648325,1735151442732,-262.09,0.00011217,2]
[346648327,1735151442742,-197.52,0.00011217,2]
[346648329,1735151442751,-500.0,0.00011217,2]
[346648331,1735151442760,-500.0,0.00011217,2]
[346648333,1735151442769,-627.6,0.00011217,2]
[346648335,1735151442779,-500.0,0.00011217,2]
[346648337,1735151442788,-500.0,0.00011217,2]
[346648339,1735151442797,-386.19,0.00011217,2]
[346648341,1735151442806,-355.64,0.00011217,2]
[346648343,1735151442815,-572.08,0.00011217,2]
[346648345,1735151442824,-1699.62,0.00011217,2]
[346648347,1735151442833,-500.0,0.00011217,2]
[346648349,1735151442843,-609.33,0.00011217,2]
[346648351,1735151442852,-500.0,0.00011217,2]
[346648353,1735151442863,-500.0,0.00011217,2]
[346648355,1735151442872,-433.4,0.00011217,2]
[346648357,1735151442881,-500.0,0.00011217,2]
[346648359,1735151442891,-500.0,0.00011217,2]
[346648361,1735151442900,-500.0,0.00011217,2]
[346648363,1735151442910,-500.0,0.00011217,2]
[346648365,1735151442919,-500.0,0.00011217,2]
[346648367,1735151442929,-207.04,0.00011217,2]
[346648369,1735151442938,-2345.24,0.00011217,2]
[346648371,1735151442947,-253.54,0.00011217,2]
[346648373,1735151442957,-199.18,0.00011217,2]
[346648375,1735151442966,-456.75,0.00011217,2]
[346648377,1735151442976,-500.0,0.00011218,2]
[346648379,1735151442985,-362.33,0.00011218,2]
[346648381,1735151442995,-500.0,0.00011218,2]
[346648383,1735151443004,-500.0,0.00011429,2]
[346648387,1735151443013,-500.0,0.0001149,2]
[346648390,1735151443022,-500.0,0.0001149,2]
[346648392,1735151443032,-1989.14,0.0001149,2]
[346648394,1735151443041,-719.75,0.0001149,2]
[346648396,1735151443051,-500.0,0.0001149,2]
[346648398,1735151443060,-500.0,0.0001149,2]
[346648400,1735151443069,-500.0,0.0001149,2]
[346648413,1735151443176,-345.76,0.0001149,2]
[346648415,1735151443186,-500.0,0.0001149,2]
[346648417,1735151443195,-500.0,0.0001149,2]
[346648419,1735151443204,-441.18,0.0001149,2]
[346648421,1735151443214,-897.9,0.0001149,2]
[346648423,1735151443223,-500.0,0.0001149,2]
[346648425,1735151443232,-500.0,0.0001149,2]
[346648427,1735151443241,-500.0,0.0001149,2]
[346648429,1735151443250,-346.51,0.0001149,2]
[346648431,1735151443260,-500.0,0.0001149,2]
[346648433,1735151443269,-500.0,0.0001149,2]
[346648435,1735151443279,-8726.05,0.0001149,2]
[346648437,1735151443288,-500.0,0.0001149,2]
[346648439,1735151443297,-500.0,0.0001149,2]
[346648441,1735151443306,-500.0,0.0001149,2]
[346648443,1735151443315,-500.0,0.0001149,2]
[346648445,1735151443324,-500.0,0.0001149,2]
[346648447,1735151443334,-500.0,0.0001149,2]
[346648449,1735151443343,-500.0,0.00011491,2]
[346648451,1735151443352,-194.02,0.00011491,2]
[346648453,1735151443361,-500.0,0.00011491,2]
[346648455,1735151443370,-387.97,0.00011491,2]
[346648457,1735151443379,-500.0,0.00011491,2]
[346648459,1735151443388,-500.0,0.00011491,2]
[346648461,1735151443397,-500.0,0.00011491,2]
[346648463,1735151443407,-500.0,0.00011491,2]
[346648465,1735151443415,-289.69,0.00011491,2]
[346648466,1735151443424,-500.0,0.00011491,2]
[346648470,1735151443434,-500.0,0.00011491,2]
[346648473,1735151443443,-500.0,0.00011491,2]
[346648476,1735151443452,-275.42,0.00011491,2]
[346648479,1735151443461,-181.63,0.00011491,2]
[346648482,1735151443470,-1699.62,0.00011491,2]
[346648485,1735151443479,-500.0,0.00011491,2]
[346648488,1735151443489,-500.0,0.00011491,2]
[346648490,1735151443499,-500.0,0.00011491,2]
[346648492,1735151443507,-500.0,0.00011491,2]
[346648494,1735151443520,-500.0,0.00011491,2]
[346648496,1735151443529,-2345.24,0.00011491,2]
[346648498,1735151443538,-500.0,0.00011492,2]
[346648500,1735151443547,-500.0,0.00011492,2]
[346648502,1735151443557,-500.0,0.00011764,2]
[346648504,1735151443566,-500.0,0.00011764,2]
[346648506,1735151443575,-1989.14,0.00011764,2]
[346648508,1735151443584,-719.75,0.00011764,2]
[346648510,1735151443594,-500.0,0.00011764,2]
[346648512,1735151443604,-500.0,0.00011764,2]
[346648514,1735151443614,-500.0,0.00011764,2]
[346648516,1735151443623,-508.31,0.00011764,2]
[346648518,1735151443632,-500.0,0.00011764,2]
[346648520,1735151443641,-897.9,0.00011764,2]
[346648522,1735151443651,-500.0,0.00011764,2]
[346648524,1735151443663,-500.0,0.00011764,2]
[346648526,1735151443672,-500.0,0.00011764,2]
[346648527,1735151443682,-500.0,0.00011764,2]
[346648530,1735151443692,-500.0,0.00011764,2]
[346648532,1735151443701,-8726.05,0.00011764,2]
[346648534,1735151443710,-500.0,0.00011764,2]
[346648536,1735151443719,-259.81822621,0.00011764,2]
[346648538,1735151443729,-500.0,0.00011764,2]
[346648540,1735151443738,-500.0,0.00011764,2]
[346648542,1735151443747,-500.0,0.00011764,2]
[346648543,1735151443755,-500.0,0.00011764,2]
[346648546,1735151443764,-212.35,0.00011765,2]
[346648548,1735151443775,-300.55873231,0.00011765,2]
[346648550,1735151443784,-500.0,0.00011765,2]
[346648552,1735151443793,-500.0,0.00011765,2]
[346648554,1735151443802,-500.0,0.00011765,2]
[346648556,1735151443811,-500.0,0.00011765,2]
[346648558,1735151443821,-500.0,0.00011765,2]
[346648560,1735151443830,-500.0,0.00011765,2]
[346648562,1735151443839,-635.79,0.00011765,2]
[346648564,1735151443848,-1699.62,0.00011765,2]
[346648566,1735151443857,-500.0,0.00011765,2]
[346648568,1735151443866,-500.0,0.00011765,2]
[346648570,1735151443875,-500.0,0.00011765,2]
[346648572,1735151443884,-500.0,0.00011765,2]
[346648574,1735151443893,-500.0,0.00011765,2]
[346648576,1735151443902,-2345.24,0.00011765,2]
[346648578,1735151443912,-500.0,0.00011766,2]
[346648580,1735151443921,-500.0,0.00011766,2]
[346648582,1735151443931,-1000.0,0.00011977,2]
[346648583,1735151443941,-420.0,0.00012024,2]
[346648586,1735151443951,-420.0,0.00012035,2]
[346648587,1735151443959,-500.0,0.00012038,2]
[346648589,1735151443969,-500.0,0.00012038,2]
[346648591,1735151443978,-1989.14,0.00012038,2]
[346648593,1735151443987,-719.75,0.00012038,2]
[346648595,1735151443996,-299.35,0.00012038,2]
[346648598,1735151444006,-500.0,0.00012038,2]
[346648600,1735151444015,-500.0,0.00012038,2]
[346648602,1735151444025,-500.0,0.00012038,2]
[346648604,1735151444034,-897.9,0.00012038,2]
[346648606,1735151444043,-500.0,0.00012038,2]
[346648608,1735151444053,-500.0,0.00012038,2]
[346648610,1735151444062,-500.0,0.00012038,2]
[346648611,1735151444071,-500.0,0.00012038,2]
[346648614,1735151444081,-500.0,0.00012038,2]
[346648615,1735151444090,-8726.05,0.00012038,2]
[346648617,1735151444099,-500.0,0.00012038,2]
[346648620,1735151444108,-500.0,0.00012038,2]
[346648621,1735151444117,-472.64,0.00012038,2]
[346648624,1735151444127,-500.0,0.00012038,2]
[346648625,1735151444136,-500.0,0.00012038,2]
[346648627,1735151444145,-500.0,0.00012039,2]
[346648629,1735151444154,-500.0,0.00012039,2]
[346648631,1735151444167,-500.0,0.00012039,2]
[346648633,1735151444176,-317.65208545,0.00012039,2]
[346648635,1735151444185,-500.0,0.00012039,2]
[346648637,1735151444194,-500.0,0.00012039,2]
[346648639,1735151444203,-1699.62,0.00012039,2]
[346648641,1735151444212,-500.0,0.00012039,2]
[346648643,1735151444222,-500.0,0.00012039,2]
[346648645,1735151444232,-500.0,0.00012039,2]
[346648647,1735151444241,-500.0,0.00012039,2]
[346648649,1735151444250,-500.0,0.00012039,2]
[346648651,1735151444259,-2345.24,0.00012039,2]
[346648653,1735151444269,-500.0,0.0001204,2]
[346648655,1735151444278,-500.0,0.0001204,2]
[346648657,1735151444287,-500.0,0.00012312,2]
[346648659,1735151444299,-500.0,0.00012312,2]
[346648661,1735151444309,-1989.14,0.00012312,2]
[346648663,1735151444318,-719.75,0.00012312,2]
[346648665,1735151444327,-500.0,0.00012312,2]
[346648667,1735151444336,-500.0,0.00012312,2]
[346648669,1735151444345,-228.88,0.00012312,2]
[346648672,1735151444355,-897.9,0.00012312,2]
[346648673,1735151444365,-500.0,0.00012312,2]
[346648675,1735151444375,-500.0,0.00012312,2]
[346648677,1735151444384,-500.0,0.00012312,2]
[346648679,1735151444393,-500.0,0.00012312,2]
[346648681,1735151444403,-500.0,0.00012312,2]
[346648683,1735151444415,-8726.05,0.00012312,2]
[346648685,1735151444426,-500.0,0.00012312,2]
[346648687,1735151444436,-500.0,0.00012312,2]
[346648689,1735151444445,-500.0,0.00012312,2]
[346648691,1735151444454,-441.42,0.00012312,2]
[346648693,1735151444463,-500.0,0.00012313,2]
[346648695,1735151444473,-500.0,0.00012313,2]
[346648697,1735151444483,-500.0,0.00012313,2]
[346648699,1735151444492,-500.0,0.00012313,2]
[346648701,1735151444502,-500.0,0.00012313,2]
[346648703,1735151444511,-1699.62,0.00012313,2]
[346648705,1735151444527,-500.0,0.00012313,2]
[346648707,1735151444538,-500.0,0.00012313,2]
[346648710,1735151444551,-500.0,0.00012313,2]
[346648712,1735151444559,-500.0,0.00012313,2]
[346648714,1735151444570,-185.07,0.00012313,2]
[346648716,1735151444579,-2345.24,0.00012313,2]
[346648718,1735151444588,-500.0,0.00012314,2]
[346648720,1735151444597,-500.0,0.00012314,2]
[346648721,1735151444606,-5000.0,0.000125,2]
[346648723,1735151444615,-5000.0,0.000125,2]
[346648725,1735151444624,-500.0,0.00012586,2]
[346648727,1735151444633,-500.0,0.00012586,2]
[346648729,1735151444642,-1989.14,0.00012586,2]
[346648731,1735151444651,-719.75,0.00012586,2]
[346648733,1735151444661,-500.0,0.00012586,2]
[346648735,1735151444671,-115.51957134,0.00012586,2]
[346648744,1735151444744,-302.60284177,0.00011215,2]
[346648746,1735151444753,-211.89715823,0.00012586,2]
[346648758,1735151444856,-172.58327043,0.00012586,2]
[346648760,1735151444866,-507.41672956,0.00012586,2]
[346648931,1735151446650,-500.0,0.00010942,2]
[346648933,1735151446660,-500.0,0.00011216,2]
[346648935,1735151446669,-500.0,0.0001149,2]
[346648937,1735151446679,-500.0,0.00011764,2]
[346648939,1735151446688,-500.0,0.00012038,2]
[346648941,1735151446698,-390.48327044,0.00012586,2]
[346648943,1735151446707,-500.0,0.00012586,2]
[346648945,1735151446717,-500.0,0.00012586,2]
[346648947,1735151446727,-500.0,0.00012586,2]
[346648949,1735151446736,-500.0,0.00012586,2]
[346648951,1735151446745,-500.0,0.00012586,2]
[346648953,1735151446754,-8726.05,0.00012586,2]
[346648955,1735151446763,-500.0,0.00012586,2]
[346648957,1735151446773,-500.0,0.00012586,2]
[346648959,1735151446782,-500.0,0.00012586,2]
[346648961,1735151446791,-500.0,0.00012587,2]
[346648963,1735151446800,-318.58,0.00012587,2]
[346648965,1735151446810,-500.0,0.00012587,2]
[346648967,1735151446819,-500.0,0.00012587,2]
[346648969,1735151446828,-1637.82215378,0.00012587,2]
[346648972,1735151446846,-500.0,0.00012312,2]
[346648974,1735151446855,-61.79784622,0.00012587,2]
[346648976,1735151446864,-500.0,0.00012587,2]
[346648978,1735151446873,-500.0,0.00012587,2]
[346648980,1735151446882,-500.0,0.00012587,2]
[346648982,1735151446892,-409.0309867,0.00012587,2]
[346648984,1735151446900,-894.8671549,0.00012587,2]
[346650595,1735152193253,1000.0,9.979e-05,2]
[346650596,1735152231685,250.0,9.979e-05,2]
[346650600,1735152247363,250.0,9.979e-05,2]
[346650601,1735152262556,500.0,9.979e-05,2]
[346650602,1735152278885,250.0,9.979e-05,2]
[346650603,1735152295901,250.0,9.979e-05,2]
[346650604,1735152312097,250.0,9.979e-05,2]
[346650605,1735152327300,250.0,9.979e-05,2]
[346650606,1735152342638,250.0,9.979e-05,2]
[346650615,1735152424565,919.7664575,9.956e-05,2]
[346650616,1735152579752,-1103.3523397,0.0001008,2]
[346650617,1735152579787,-733.56793233,0.0001008,2]
[346650618,1735152579851,-1103.3523397,0.0001008,2]
[346650619,1735152604468,-1162.15779194,0.0001008,2]
[346650620,1735152604526,-914.18609761,0.0001008,2]
[346650648,1735152632870,-285.85328052,0.0001008,2]
[346650649,1735152632880,-161.9588562,0.00010524,2]
[346650650,1735152633004,-34.18854907,0.00010524,2]
[346650651,1735152633014,-345.80453214,0.00010624,2]
[346650653,1735152633026,-98.29789903,0.00010624,2]
[346650655,1735152633036,-300.0,0.0001094,2]
[346650657,1735152633045,-300.0,0.0001094,2]
[346650659,1735152633055,-500.0,0.0001094,2]
[346650661,1735152633065,-500.0,0.00010941,2]
[346650663,1735152633074,-471.52609906,0.00010941,2]
[346650665,1735152633083,-500.0,0.00010941,2]
[346650668,1735152633102,-1721.65,0.00010941,2]
[346650670,1735152633114,-1447.56,0.00010941,2]
[346650672,1735152633123,-500.0,0.00010941,2]
[346650674,1735152633134,-509.83,0.00010941,2]
[346650676,1735152633145,-400.90041065,0.00010941,2]
[346650678,1735152633156,-500.0,0.00010941,2]
[346650680,1735152633167,-500.0,0.00010941,2]
[346650682,1735152633177,-500.0,0.00010941,2]
[346650684,1735152633187,-540.8552,0.00010941,2]
[346650686,1735152633198,-594.68,0.00010941,2]
[346650689,1735152633209,-6180.95,0.00010941,2]
[346650691,1735152633219,-636.01,0.00010941,2]
[346650693,1735152633230,-500.0,0.00010941,2]
[346650695,1735152633240,-500.0,0.00010941,2]
[346650697,1735152633250,-1203.9,0.00010941,2]
[346650699,1735152633260,-500.0,0.00010941,2]
[346650701,1735152633270,-500.0,0.00010941,2]
[346650703,1735152633280,-500.0,0.00010941,2]
[346650705,1735152633290,-500.0,0.00010941,2]
[346650707,1735152633300,-500.0,0.00010941,2]
[346650709,1735152633309,-500.0,0.00010941,2]
[346650711,1735152633319,-500.0,0.00010942,2]
[346650713,1735152633328,-500.0,0.00010942,2]
[346650715,1735152633338,-8029.74710663,0.00011,2]
[346651253,1735152638664,-791.0,0.00011,2]
[346651265,1735152638771,-63.25289337,0.00011,2]
[346651267,1735152638781,-500.0,0.00011214,2]
[346651269,1735152638791,-500.0,0.00011215,2]
[346651271,1735152638800,-383.05374213,0.00011215,2]
[346651275,1735152638812,-116.94625787,0.00011215,2]
[346651277,1735152638821,-187.12098712,0.00011215,2]
[346651279,1735152638832,-329.62620903,0.00011215,2]
[346651500,1735152640956,-819.32607797,0.00011215,2]
[346651502,1735152640968,-385.57672588,0.00011215,2]
[346651504,1735152640978,-1447.56,0.00011215,2]
[346651506,1735152640987,-500.0,0.00011215,2]
[346651508,1735152640997,-509.83,0.00011215,2]
[346651510,1735152641007,-500.0,0.00011215,2]
[346651512,1735152641016,-500.0,0.00011215,2]
[346651514,1735152641026,-500.0,0.00011215,2]
[346651516,1735152641039,-594.68,0.00011215,2]
[346651519,1735152641052,-6180.95,0.00011215,2]
[346651521,1735152641065,-636.01,0.00011215,2]
[346651523,1735152641078,-500.0,0.00011215,2]
[346651526,1735152641090,-500.0,0.00011215,2]
[346651528,1735152641103,-1203.9,0.00011215,2]
[346651530,1735152641115,-372.19160474,0.00011215,2]
[346651532,1735152641126,-500.0,0.00011215,2]
[346651534,1735152641136,-500.0,0.00011215,2]
[346651537,1735152641148,-500.0,0.00011215,2]
[346651539,1735152641160,-500.0,0.00011215,2]
[346651541,1735152641172,-500.0,0.00011215,2]
[346651543,1735152641182,-500.0,0.00011216,2]
[346651545,1735152641194,-500.0,0.00011216,2]
[346651548,1735152641205,-500.0,0.00011488,2]
[346651550,1735152641217,-500.0,0.00011489,2]
[346651552,1735152641229,-500.0,0.00011489,2]
[346651554,1735152641240,-1721.65,0.00011489,2]
[346651556,1735152641251,-1447.56,0.00011489,2]
[346651559,1735152641263,-500.0,0.00011489,2]
[346651561,1735152641275,-509.83,0.00011489,2]
[346651563,1735152641287,-496.75,0.00011489,2]
[346651565,1735152641299,-500.0,0.00011489,2]
[346651568,1735152641310,-500.0,0.00011489,2]
[346651570,1735152641321,-594.68,0.00011489,2]
[346651572,1735152641331,-6180.95,0.00011489,2]
[346651574,1735152641342,-636.01,0.00011489,2]
[346651576,1735152641353,-263.10228976,0.00011489,2]
[346651578,1735152641364,-500.0,0.00011489,2]
[346651581,1735152641375,-1203.9,0.00011489,2]
[346651583,1735152641387,-500.0,0.00011489,2]
[346651585,1735152641398,-500.0,0.00011489,2]
[346651587,1735152641409,-592.57,0.00011489,2]
[346651589,1735152641421,-500.0,0.00011489,2]
[346651591,1735152641432,-500.0,0.00011489,2]
[346651594,1735152641442,-500.0,0.0001149,2]
[346651596,1735152641453,-500.0,0.0001149,2]
[346651598,1735152641464,-500.0,0.00011762,2]
[346651600,1735152641473,-500.0,0.00011763,2]
[346651602,1735152641483,-500.0,0.00011763,2]
[346651604,1735152641493,-1721.65,0.00011763,2]
[346651606,1735152641503,-1447.56,0.00011763,2]
[346651608,1735152641515,-500.0,0.00011763,2]
[346651610,1735152641525,-509.83,0.00011763,2]
[346651612,1735152641535,-500.0,0.00011763,2]
[346651615,1735152641547,-500.0,0.00011763,2]
[346651617,1735152641557,-594.68,0.00011763,2]
[346651619,1735152641568,-6180.95,0.00011763,2]
[346651621,1735152641580,-636.01,0.00011763,2]
[346651623,1735152641591,-500.0,0.00011763,2]
[346651625,1735152641602,-1203.9,0.00011763,2]
[346651628,1735152641613,-500.0,0.00011763,2]
[346651630,1735152641623,-500.0,0.00011763,2]
[346651632,1735152641635,-500.0,0.00011763,2]
[346651634,1735152641645,-500.0,0.00011763,2]
[346651636,1735152641656,-423.67,0.00011764,2]
[346651638,1735152641667,-500.0,0.00011764,2]
[346651640,1735152641678,-420.0,0.00012023,2]
[346651642,1735152641689,-420.0,0.00012034,2]
[346651645,1735152641701,-500.0,0.00012036,2]
[346651647,1735152641712,-500.0,0.00012037,2]
[346651649,1735152641721,-593.71,0.00012037,2]
[346651651,1735152641731,-1721.65,0.00012037,2]
[346651653,1735152641741,-1447.56,0.00012037,2]
[346651655,1735152641750,-500.0,0.00012037,2]
[346651657,1735152641760,-509.83,0.00012037,2]
[346651659,1735152641770,-500.0,0.00012037,2]
[346651661,1735152641780,-500.0,0.00012037,2]
[346651663,1735152641790,-594.68,0.00012037,2]
[346651665,1735152641802,-6180.95,0.00012037,2]
[346651667,1735152641813,-636.01,0.00012037,2]
[346651670,1735152641826,-500.0,0.00012037,2]
[346651672,1735152641837,-1203.9,0.00012037,2]
[346651674,1735152641852,-500.0,0.00012037,2]
[346651676,1735152641864,-500.0,0.00012037,2]
[346651678,1735152641874,-500.0,0.00012037,2]
[346651680,1735152641884,-500.0,0.00012037,2]
[346651682,1735152641895,-500.0,0.00012038,2]
[346651684,1735152641905,-211.82198924,0.0001231,2]
[346651687,1735152641916,-500.0,0.0001231,2]
[346651689,1735152641927,-344.28892583,0.00012311,2]
[346651692,1735152641944,-1721.65,0.00012311,2]
[346651694,1735152641954,-1447.56,0.00012311,2]
[346651696,1735152641965,-500.0,0.00012311,2]
[346651698,1735152641975,-509.83,0.00012311,2]
[346651700,1735152641986,-500.0,0.00012311,2]
[346651702,1735152641996,-386.67,0.00012311,2]
[346651704,1735152642007,-594.68,0.00012311,2]
[346651706,1735152642017,-6180.95,0.00012311,2]
[346651708,1735152642027,-636.01,0.00012311,2]
[346651711,1735152642039,-500.0,0.00012311,2]
[346651713,1735152642049,-1203.9,0.00012311,2]
[346651715,1735152642059,-500.0,0.00012311,2]
[346651717,1735152642070,-564.68170366,0.00012311,2]
[346651719,1735152642083,-413.61235355,0.00012311,2]
[346651721,1735152642093,-500.0,0.00012311,2]
[346651723,1735152642103,-500.0,0.00012312,2]
[346651725,1735152642113,-500.0,0.00012584,2]
[346651727,1735152642123,-1721.65,0.00012585,2]
[346651730,1735152642133,-1447.56,0.00012585,2]
[346651732,1735152642143,-500.0,0.00012585,2]
[346651734,1735152642154,-509.83,0.00012585,2]
[346651736,1735152642164,-500.0,0.00012585,2]
[346651738,1735152642174,-594.68,0.00012585,2]
[346651740,1735152642184,-6180.95,0.00012585,2]
[346651742,1735152642196,-636.01,0.00012585,2]
[346651744,1735152642206,-500.0,0.00012585,2]
[346651746,1735152642217,-1203.9,0.00012585,2]
[346651748,1735152642227,-500.0,0.00012585,2]
[346651750,1735152642237,-500.0,0.00012585,2]
[346651752,1735152642247,-368.64123803,0.00012586,2]
[346651754,1735152642258,-1081.97,0.000126,2]
[346651757,1735152642269,-500.0,0.00012858,2]
[346651759,1735152642279,-1721.65,0.00012859,2]
[346651761,1735152642289,-1447.56,0.00012859,2]
[346651763,1735152642299,-500.0,0.00012859,2]
[346651765,1735152642309,-509.83,0.00012859,2]
[346651767,1735152642319,-500.0,0.00012859,2]
[346651769,1735152642329,-594.68,0.00012859,2]
[346651771,1735152642339,-6180.95,0.00012859,2]
[346651773,1735152642350,-636.01,0.00012859,2]
[346651775,1735152642361,-500.0,0.00012859,2]
[346651777,1735152642371,-1203.9,0.00012859,2]
[346651779,1735152642382,-500.0,0.00012859,2]
[346651782,1735152642392,-500.0,0.00012859,2]
[346651784,1735152642402,-163.31038481,0.000129,2]
[346651786,1735152642413,-4117.2866533,0.00012965,2]
[346651788,1735152642423,-82980.57519542,0.00013,2]
[346651804,1735152642565,-500.0,0.00013132,2]
[346651806,1735152642575,-1721.65,0.00013133,2]
[346651808,1735152642585,-1447.56,0.00013133,2]
[346651810,1735152642594,-500.0,0.00013133,2]
[346651812,1735152642604,-509.83,0.00013133,2]
[346651814,1735152642613,-500.0,0.00013133,2]
[346651816,1735152642622,-594.68,0.00013133,2]
[346651818,1735152642632,-5549.56241186,0.00013133,2]
[346651820,1735152642645,-631.38758814,0.00013133,2]
[346651822,1735152642655,-636.01,0.00013133,2]
[346651824,1735152642664,-500.0,0.00013133,2]
[346651826,1735152642674,-1203.9,0.00013133,2]
[346651828,1735152642683,-211.59,0.00013133,2]
[346651830,1735152642693,-500.0,0.00013133,2]
[346651832,1735152642702,-587.0,0.00013212,2]
[346651834,1735152642711,-587.0,0.00013237,2]
[346651836,1735152642720,-778.486,0.000133,2]
[346651838,1735152642730,-1200.0,0.00013373,2]
[346651840,1735152642740,-500.0,0.00013406,2]
[346651842,1735152642749,-1721.65,0.00013407,2]
[346651843,1735152642758,-1447.56,0.00013407,2]
[346651844,1735152642767,-500.0,0.00013407,2]
[346651845,1735152642776,-509.83,0.00013407,2]
[346651846,1735152642785,-500.0,0.00013407,2]
[346651847,1735152642794,-594.68,0.00013407,2]
[346651848,1735152642803,-6163.90641186,0.00013407,2]
[346651849,1735152642853,-17.04358814,0.00013407,2]
[346651850,1735152642862,-636.01,0.00013407,2]
[346651851,1735152642871,-443.72,0.00013407,2]
[346651852,1735152642881,-1203.9,0.00013407,2]
[346651853,1735152642890,-500.0,0.00013407,2]
[346651854,1735152642899,-197.093,0.00013577,2]
[346651855,1735152642908,-500.0,0.0001368,2]
[346651857,1735152642917,-1721.65,0.00013681,2]
[346651859,1735152642927,-1447.56,0.00013681,2]
[346651861,1735152642936,-500.0,0.00013681,2]
[346651863,1735152642945,-509.83,0.00013681,2]
[346651865,1735152642954,-346.36170294,0.00013681,2]
[346651867,1735152642966,-153.63829706,0.00013681,2]
[346651869,1735152642975,-594.68,0.00013681,2]
[346651871,1735152642984,-6180.95,0.00013681,2]
[346651873,1735152642993,-636.01,0.00013681,2]